Workbook

Sheet Formulario
D1: FORMULARIO 101 | J1: DECLARACIÓN DEL IMPUESTO SOBRE EL VALOR ESPECULATIVO DE SUELO EN LA TRANSFERENCIA DE BIENES INMUEBLES | AF1: No.
C2: RESOLUCIÓN N° 044-DFM-GT-2017
Y4: 104 | Z4: Nº. DE FORMULARIO QUE SUSTITUYE
A7: 200 IDENTIFICACIÓN DEL SUJETO PASIVO
A8: 201 | B8: RUC | O8: 202 | Q8: RAZÓN O DENOMINACIÓN SOCIAL | AE8: 203 | AF8: NRO. TRAMITE DE TRANSFERENCIA
L9: 0 | M9: 0 | N9: 1
A10: 201 | B10: CLAVE CATASTRAL | U10: 202 | W10: DIRECCION: | AE10: 203 | AF10: NRO.
A12: 204 | B12: TIPO DE TRANSFERENCIA DE DOMINIO | O12: 210 | Q12: Valor de la Transferencia
B13: SELECCIONE
A14: 205 | B14: FECHA DE TRANSFERENCIA | O14: 211 | Q14: (-) Costo de Adquisición Ajustada | AF14: =IFERROR(+Z18*Z19,0) -> 0
O15: 212 | Q15: Costo del Bien
A16: 206 | B16: FECHA DE ADQUISICIÓN | O16: 213 | Q16: (+) Mejoras
O17: 214 | Q17: (+) Valor CEM
A18: 207 | B18: NÚMERO DE MESES TRANSCURRIDOS | O18: 215 | Q18: Valor Total Costo de Adquisición (211+212+212+214) | Z18: =SUM(Z15:AE17) -> 0
B19: =IF(B15=0,0,Hoja1!H15) -> 0 | O19: 216 | Q19: Factor de Ajuste* | Z19: =TRUNC(ROUND(IF(B15=0,0,IFERROR((1+Hoja1!H16)^(Hoja1!H15/12),0)),5),5) -> 0
A20: 208 | B20: PRESTAMO HIPOTECARIO | O20: 217 | Q20: Base Imponible (210-215) | AF20: =+AF12-AF14 -> 0
B21: CON PRESTAMO | H21: SIN PRESTAMO | O21: 218 | Q21: (-) Ganancia Adicional exenta | AF21: =24*Hoja1!H1 -> 9264
A22: 209 | B22: INSTITUCION FINANCIERA QUE OTORGA EL CRÉDITO | O22: 218 | Q22: Ganancia extraordinaria gravada | AF22: =+AF20-AF21 -> -9264
O23: 220 | Q23: Impuesto a IVES | AF23: =IF(AF22<0,0,+AF22*75%) -> 0
A29: FIRMA SUJETO PASIVO / REPRESENTANTE LEGAL
A30: NOMBRE : | V30: NOTARIA | W30: Nombre del Notario: | AA30: SELECCIONE
A31: 198 | B31: Cédula de Identidad o No. de Pasaporte: | V31: 199 | W31: Direccion de la Notaria y Nro. telefónico: | AD31: =VLOOKUP(AA30,Hoja2!B$2:C$10,2,FALSE) -> 0

Sheet Hoja1 (hidden)
A1: Cálculo del IVES | G1: RBU | H1: 386 | I1: TIPR | J1: 1 | K1: enero | L1: 0.0754 | M1: 31
G2: Fecha 1 | H2: 2017-02-10 | J2: 2 | K2: febrero | L2: =+L1 -> 0.0754 | M2: 28
A3: REF | B3: CONCEPTOS | C3: TIPO DE DATOS | D3: SUBTOTAL | E3: VALOR | G3: Fecha 2 | H3: 2017-09-15 | J3: 3 | K3: marzo | L3: 0.075 | M3: 31
A4: A | B4: Valor de transferencia | C4: Dato a ingresar | E4: 43480.06 | H4: =+H3-H2 -> 217 | J4: 4 | K4: abril | L4: 0.0738 | M4: 30
A5: B | B5: (-) Costo de Adquisición | E5: =+D9*D10 -> 41693.46569 | H5: =+H4/N16 -> 6.575757576 | J5: 5 | K5: mayo | L5: 0.0721 | M5: 31
A6: C | B6: Costo del Bien | C6: Dato a ingresar | D6: 38648.94 | G6: n | H6: =+H5/12 -> 0.547979798 | J6: 6 | K6: junio | L6: 0.0712 | M6: 30
A7: D | B7: (+) Mejoras | C7: Dato a ingresar | J7: 7 | K7: julio | L7: 0.0715 | M7: 31
A8: E | B8: (+) Valor CEM | C8: Dato a ingresar | J8: 8 | K8: agosto | L8: 0.0716 | M8: 31
A9: F | B9: Valor Total Costo de Adquisición (C+D+E) | C9: Sumatoria | D9: =SUM(D6:D8) -> 38648.94 | J9: 9 | K9: septiembre | L9: 0.071 | M9: 30
A10: G | B10: Factor de Ajuste* | C10: i: promedio de la tasa de interés pasiva referencial. (n) número de meses transcurridos entre la fecha de adquisición y la fecha de transferencia /12 | D10: =(1+H16)^(H15/12) -> 1.078773847 | J10: 10 | K10: octubre | L10: 0.0715 | M10: 31
A11: H | B11: Base Imponible | C11: (A-B) | E11: =E4-E5 -> 1786.594307 | G11: FORMULAS FACTOR AJUSTE | J11: 11 | K11: noviembre | L11: 0.0697 | M11: 30
A12: I | B12: (-) Ganancia Adicional exenta | C12: hasta 24 RBU | E12: =24*H1 -> 9264 | J12: 12 | K12: diciembre | L12: 0.0705 | M12: 31
A13: J | B13: Ganancia extraordinaria gravada | C13: (H-I) | E13: =+E11-E12 -> -7477.405693 | G13: f1 | H13: =MONTH(Formulario!B17) -> 1 | I13: =MATCH(H13,J1:J14,0) -> 1 | J13: 13 | K13: enero | L13: 0.0738 | M13: 31
A14: K | B14: Impuesto a IVES | C14: Apliar Tabla | E14: =+E13*75% -> -5608.05427 | G14: f2 | H14: =MONTH(Formulario!B15) -> 1 | J14: 14 | K14: febrero | L14: 0.0727
A15: * Crear tabla para ingresar la tasa pasiva cada mes en el ejemplo son 12 meses transcurridos | G15: #meses | H15: =IF(H14<=H13,12-H13+H14+1,12+H14) -> 13 | I15: =I13+H15-1 -> 13
G16: factor | H16: =SUM(INDIRECT("L"&I13&":L"&I15))/H15 -> 0.0725 | L16: =AVERAGE(L1:L14) -> 0.07251428571 | M16: =SUM(M1:M13) -> 396 | N16: =+M16/12 -> 33
L22: =SUM(INDIRECT("L"&H22&":L"&H23)) -> 0

Sheet Hoja2 (hidden)
A1: TIPO DE TRANSFERENCIA DE DOMINIO | B1: NOTARIOS | C1: DIRECCION
A2: SELECCIONE | B2: SELECCIONE
A3: ACCIONES Y DERECHOS Y OTROS CANTONES | B3: DR. MARCO NICOLALDE MONTALVO | C3: Sucre 5-12 y García Moreno. Telf. 2601166
A4: ADJUDICACIONES | B4: DRA. SANDRA CASTILLO PAGUAY | C4: Rocafuerte 4-33 y Grijalva. Telf. 2601850
A5: CESION DE AREAS | B5: AB. LEONARDO SUAREZ SERRANO | C5: Sucre 6-24. Telf: 2950112
A6: CESION DE GANACIALES | B6: DR. DIEGO ANDRADE ARMAS | C6: García Moreno 4-26 y Rocafuerte. Telf. 2643801
A7: COMPRAVENTA | B7: DR. ARTURO TERÁN ALMEIDA | C7: Rocafuerte 4-74 y García Moreno. Telf. 2952185
A8: COMPRAVENTA DE INTEGRACION | B8: DRA. MERCEDES KARINA TERAN FLORES | C8: García Moreno 4-04 y Rocafuerte. Telf. 2601908
A9: COMPRAVENTA OTROS CANTONES | B9: DR. MARIO BRICEÑO SANCHEZ VINUEZA | C9: Aurelio Mosquera y Rafael Troya. Telf. 5002724
A10: DONACIONES | B10: DR. LUIS ABDON GARRIDO MERA | C10: Olmedo 1-94 y Rafael Troya. Telf. 2605186
A11: DONACIONES OTROS CANTONES
A12: DONACIONES PADRE E HIJOS
A13: DONACIONES HERMANOS
A14: EXCEDENTES DE AREAS
A15: EXPROPIACIONES
A16: LEGALIZACION SOLO TERRENO
A17: LIQUIDACION SOCIEDAD CONYUGAL
A18: NUDA PROPIEDAD
A19: OTRAS TRANSFERENCIAS
A20: OTRAS TRANSFERENCIAS OTROS CANTONES
A21: PARTICIONES CON CUOTA
A22: PARTICIONES Y REFUNDICIONES
A23: PERMUTA
A24: PRESCRIPCION EXTRAORDINARIA
A25: REMATE PUBLICO
A26: USUFRUCTO
A27: USUFRUCTO OTROS CANTONES
A28: VENTA DE DERECHOS Y ACCIONES
